bitfinex-derivatives/quotes_SOLF0:USTF0_20250819
["timestamp","ask_amount","ask_price","bid_price","bid_amount"]
[1755605309541,4.42737625,182.2,182.1,2.95]
[1755605309835,3.61774241,182.21,182.1,2.95]
[1755605310030,4.42731499,182.2,182.1,2.95]
[1755605310333,3.61774241,182.21,182.1,2.95]
[1755605310540,4.42794697,182.2,182.1,2.95]
[1755605310742,4.42794376,182.19,182.1,2.95]
[1755605311036,3.61774241,182.21,182.1,2.95]
[1755605311239,4.42754943,182.2,182.1,2.95]
[1755605311441,4.42754943,182.19,182.1,2.95]
[1755605311630,4.42754943,182.18,182.1,2.95]
[1755605311941,3.61774241,182.21,182.1,2.95]
[1755605312237,4.42837551,182.2,182.1,2.95]
[1755605312437,4.42837551,182.19,182.1,2.95]
[1755605312637,4.42837551,182.18,182.1,2.95]
[1755605312841,3.61774241,182.21,182.1,2.95]
[1755605313039,3.61774241,182.18,182.1,2.95]
[1755605314836,5.9772944,182.24,182.05,2.95]
[1755605314837,3.61774241,182.15,182.05,2.95]
[1755605317343,4.43385178,182.14,182.05,2.95]
[1755605317545,3.61774241,182.15,182.05,2.95]
[1755605317839,4.43315151,182.14,182.05,2.95]
[1755605318050,3.61774241,182.15,182.05,2.95]
[1755605318540,4.43322327,182.14,182.05,2.95]
[1755605318739,3.61774241,182.15,182.05,2.95]
[1755605318940,4.43322327,182.14,182.05,2.95]
[1755605319141,3.61774241,182.15,182.05,2.95]
[1755605319343,4.43337736,182.14,182.05,2.95]
[1755605319538,3.61774241,182.15,182.05,2.95]
[1755605319744,3.61774241,182.12,182.05,2.95]
[1755605323838,4.42836143,182.11,182.05,2.95]
[1755605324046,4.42836143,182.11,181.98,9.79814069]
[1755605324047,3.61774241,182.12,182.02,2.95]
[1755605324246,4.42850748,182.11,182.02,2.95]
[1755605324446,3.61774241,182.12,182.02,2.95]
[1755605324655,4.42834745,182.11,182.02,2.95]
[1755605324853,4.42834745,182.1,182.02,2.95]
[1755605325151,3.61774241,182.12,182.02,2.95]
[1755605325346,4.42779454,182.11,182.02,2.95]
[1755605325545,3.61774241,182.12,182.02,2.95]
[1755605325749,4.42638487,182.11,182.02,2.95]
[1755605325943,3.61774241,182.12,182.02,2.95]
[1755605326143,4.42638487,182.11,182.02,2.95]
[1755605326342,3.61774241,182.09,182.02,2.95]
[1755605333962,3.61774241,182.09,181.96,2.98]
[1755605337861,3.61774241,182.06,181.96,2.98]
[1755605341874,3.61774241,182.09,181.97,2.98]
[1755605342665,134.92,182.17,181.98,2.98]
[1755605342865,3.61774241,182.11,181.98,2.98]
[1755605343267,3.61774241,182.08,181.98,2.98]
[1755605343465,3.61774241,182.05,181.98,2.98]
[1755605345965,3.61774241,182.08,181.98,2.98]
[1755605350379,4.4023213,182.07,181.98,2.98]
[1755605350580,3.61774241,182.08,181.98,2.98]
[1755605350973,4.402321,182.07,181.98,2.98]
[1755605351277,3.61774241,182.08,181.98,2.98]
[1755605351474,4.40231655,182.07,181.98,2.98]
[1755605351676,3.61774241,182.08,181.98,2.98]
[1755605351872,4.40355012,182.07,181.98,2.98]
[1755605352068,3.61774241,182.08,181.98,2.98]
[1755605352273,4.40315237,182.07,181.98,2.98]
[1755605352469,3.61774241,182.08,181.98,2.98]
[1755605352773,4.40515777,182.07,181.98,2.98]
[1755605352971,3.61774241,182.08,181.98,2.98]
[1755605353180,4.40516067,182.07,181.98,2.98]
[1755605353379,4.4076095,182.06,181.98,2.98]
[1755605353579,3.61774241,182.08,181.98,2.98]
[1755605353780,4.4076095,182.07,181.98,2.98]
[1755605353976,4.4076095,182.06,181.98,2.98]
[1755605354279,3.61774241,182.08,181.98,2.98]
[1755605354479,4.40910158,182.07,181.98,2.98]
[1755605354679,4.40910158,182.06,181.98,2.98]
[1755605354881,4.40910158,182.05,181.98,2.98]
[1755605355080,3.61774241,182.08,181.98,2.98]
[1755605355277,4.4089066,182.07,181.98,2.98]
[1755605355480,4.4089066,182.06,181.98,2.98]
[1755605355680,4.4089066,182.05,181.98,2.98]
[1755605355980,3.61774241,182.08,181.98,2.98]
[1755605356182,4.41033899,182.07,181.98,2.98]
[1755605356483,4.41033899,182.06,181.98,2.98]
[1755605356681,4.41033899,182.05,181.98,2.98]
[1755605356878,3.61774241,182.08,181.98,2.98]
[1755605357078,4.41154786,182.07,181.98,2.98]
[1755605357281,4.41154786,182.06,181.98,2.98]
[1755605357481,4.41154786,182.05,181.98,2.98]
[1755605357682,3.61774241,182.08,181.98,2.98]
[1755605357877,4.41299051,182.07,181.98,2.98]
[1755605358084,4.41299051,182.06,181.98,2.98]
[1755605358279,4.41299051,182.05,181.98,2.98]
[1755605358487,4.41299051,182.04,181.98,2.98]
[1755605358678,3.61774241,182.08,181.98,2.98]
[1755605358878,4.44886917,182.07,181.98,2.98]
[1755605359083,4.44886917,182.06,181.98,2.98]
[1755605359281,4.44886917,182.05,181.98,2.98]
[1755605359481,4.44886917,182.04,181.98,2.98]
[1755605359684,3.61774241,182.08,181.98,2.98]
[1755605360076,4.45109585,182.07,181.98,2.98]
[1755605360279,4.45109585,182.06,181.98,2.98]
[1755605360480,4.45109585,182.05,181.98,2.98]
[1755605360682,4.4513922,182.04,181.98,2.98]
[1755605360981,3.61774241,182.08,181.98,2.98]
[1755605361176,4.45112739,182.07,181.98,2.98]
[1755605361385,4.45112739,182.06,181.98,2.98]
[1755605361585,4.45112739,182.05,181.98,2.98]
[1755605361784,4.45112739,182.04,181.98,2.98]
[1755605361988,3.61774241,182.08,181.98,2.98]
[1755605362185,4.45206452,182.07,181.98,2.98]
[1755605362384,4.45206452,182.06,181.98,2.98]
[1755605362579,4.45206452,182.05,181.98,2.98]
[1755605362784,4.45206452,182.04,181.98,2.98]
[1755605362984,3.61774241,182.08,181.98,2.98]
[1755605363189,4.45315067,182.07,181.98,2.98]
[1755605363480,4.45315067,182.06,181.98,2.98]
[1755605363683,4.45315067,182.05,181.98,2.98]
[1755605363890,4.45315067,182.04,181.98,2.98]
[1755605364089,3.61774241,182.08,181.98,2.98]
[1755605364291,4.45499152,182.07,181.98,2.98]
[1755605364490,4.45499152,182.06,181.98,2.98]
[1755605364793,4.45499152,182.05,181.98,2.98]
[1755605365001,4.45499152,182.04,181.98,2.98]
[1755605365197,4.45499152,182.03,181.93,373.45400967]
[1755605365404,3.61774241,182.05,181.94,3.15]
[1755605365602,4.45721809,182.04,181.94,3.15]
[1755605365804,4.45721809,182.03,181.94,3.15]
[1755605366099,3.61774241,182.05,181.94,3.15]
[1755605366306,4.4574499,182.04,181.94,3.15]
[1755605366607,4.4574499,182.03,181.94,3.15]
[1755605366807,3.61774241,182.05,181.94,3.15]
[1755605367105,4.45886793,182.04,181.94,3.15]
[1755605367304,4.45886793,182.03,181.94,3.15]
[1755605367502,3.61774241,182.05,181.94,3.15]
[1755605367702,4.46062284,182.04,181.94,3.15]
[1755605367902,4.46062284,182.03,181.94,3.15]
[1755605368104,3.61774241,182.05,181.94,3.15]
[1755605368305,4.46020597,182.04,181.94,3.15]
[1755605368504,4.46020597,182.03,181.94,3.15]
[1755605368705,3.61774241,182.05,181.94,3.15]
[1755605368909,4.46211168,182.04,181.94,3.15]
[1755605369301,4.46211314,182.03,181.94,3.15]
[1755605369608,3.61774241,182.05,181.94,3.15]
[1755605369812,4.46312263,182.04,181.94,3.15]
[1755605370006,4.46312263,182.03,181.94,3.15]
[1755605370206,4.46312263,182.02,181.94,6.18039828]
[1755605370406,2.31823575,182.03,181.96,3.15]
[1755605370805,2.31823575,182.05,181.98,3.15]
[1755605371008,4.4653674,182.04,181.98,3.15]
[1755605371204,2.31823575,182.05,181.98,3.15]
[1755605371406,4.46610952,182.04,181.98,3.15]
[1755605371604,2.31823575,182.05,181.98,3.15]
[1755605371810,4.46803522,182.04,181.98,3.15]
[1755605372010,2.31823575,182.05,181.98,3.15]
[1755605372706,4.46721202,182.04,181.98,3.15]
[1755605372904,2.31823575,182.05,181.98,3.15]
[1755605373210,4.46719097,182.04,181.98,3.15]
[1755605373410,2.31823575,182.05,181.98,3.15]
[1755605373604,4.46761535,182.04,181.98,3.15]
[1755605373803,2.31823575,182.05,181.98,3.15]
[1755605374005,4.46761535,182.04,181.98,3.15]
[1755605374209,2.31823575,182.05,181.98,3.15]
[1755605374511,4.46840632,182.04,181.98,3.15]
[1755605374706,3.62154669,182.08,181.98,3.15]
[1755605374899,7.09178338,182.07,181.98,3.15]
[1755605375103,4.46880002,182.06,181.98,3.15]
[1755605375300,4.46880002,182.05,181.98,3.15]
[1755605375510,4.46880002,182.04,181.98,3.15]
[1755605375810,3.62154669,182.08,181.98,3.15]
[1755605376015,4.46829683,182.07,181.98,3.15]
[1755605376208,4.46829683,182.06,181.98,3.15]
[1755605376506,4.46829683,182.05,181.98,3.15]
[1755605376810,4.46829683,182.04,181.98,3.15]
[1755605377013,3.62154669,182.08,181.98,3.15]
[1755605377210,4.46769033,182.07,181.98,3.15]
[1755605377408,4.46769033,182.06,181.98,9.33039828]
[1755605377608,4.46769033,182.05,181.99,3.15]
[1755605377913,3.62154669,182.11,182.0,3.15]
[1755605378110,3.62154669,182.11,182.01,4.62629295]
[1755605378312,6.74221506,182.1,182.02,3.15]
[1755605378511,6.74221506,182.09,182.02,3.15]
[1755605378715,4.11945173,182.08,182.02,3.15]
[1755605378912,4.11891213,182.07,182.02,3.15]
[1755605379113,3.62154669,182.11,182.03,3.15]
[1755605379314,6.74094427,182.1,182.03,3.15]
[1755605379516,6.74094427,182.09,182.03,3.15]
[1755605379715,4.11845859,182.08,182.03,3.15]
[1755605380013,4.11845859,182.07,182.03,3.15]
[1755605380203,4.11845859,182.06,182.03,3.15]
[1755605380408,4.11845859,182.05,182.01,4.62629295]
[1755605380608,5.9772944,182.13,182.02,3.15]
[1755605380911,10.75466302,182.12,182.02,4.62629295]
[1755605381119,4.51099392,182.11,182.05,3.15]
[1755605381317,4.51099392,182.1,182.04,3.15]
[1755605381511,4.51099392,182.09,182.04,7.77629295]
[1755605381711,3.62154669,182.14,182.05,3.15]
[1755605381918,7.13006093,182.13,182.05,3.15]
[1755605382117,4.50900884,182.12,182.05,3.15]
[1755605382317,4.50900884,182.11,182.05,3.15]
[1755605382518,4.50900884,182.1,182.06,3.15]
[1755605382721,4.50900884,182.09,182.07,3.15]
[1755605383019,3.62154669,182.14,182.07,3.15]
[1755605383217,7.12461438,182.13,182.07,3.15]
[1755605383520,4.50549352,182.12,182.07,3.15]
[1755605383715,4.50549352,182.11,182.07,3.15]
[1755605383915,4.50549352,182.1,182.07,3.15]
[1755605384115,3.62154669,182.14,182.04,3.15]
[1755605384317,7.12190021,182.13,182.04,3.15]
[1755605384518,4.50383086,182.12,182.04,3.15]
[1755605384822,4.50383086,182.11,182.04,3.15]
[1755605385018,4.50383086,182.1,182.04,3.15]
[1755605385222,4.50383086,182.09,182.04,3.15]
[1755605385417,3.62154669,182.14,182.05,3.15]
[1755605385616,7.1195302,182.13,182.05,3.15]
[1755605385816,4.50235697,182.12,182.05,3.15]
[1755605386118,4.50235697,182.11,182.05,3.15]
[1755605386318,4.50235697,182.1,182.05,3.15]
[1755605386519,4.50235697,182.09,182.06,3.15]
[1755605386823,3.62154669,182.14,182.06,3.15]
[1755605387021,7.11883876,182.13,182.06,3.15]
[1755605387217,4.50177973,182.12,182.06,3.15]
[1755605387417,4.50177973,182.11,182.02,4.62629295]
[1755605387616,4.50177973,182.1,182.07,3.15]
[1755605387821,3.62154669,182.14,182.07,3.15]
[1755605388022,7.11755522,182.13,182.07,3.15]
[1755605388323,4.50110414,182.12,182.07,3.15]
[1755605388520,4.50110414,182.11,182.03,3.15]
[1755605388720,4.50110414,182.1,182.03,3.15]
[1755605389023,3.62154669,182.14,182.03,3.15]
[1755605389323,4.50472702,182.13,182.03,3.15]
[1755605389620,4.50472702,182.12,182.03,3.15]
[1755605389822,4.50472702,182.11,182.03,3.15]
[1755605390021,4.50472702,182.1,182.03,3.15]
[1755605390216,4.50472702,182.09,182.03,3.15]
[1755605390421,3.62154669,182.14,182.03,3.15]
[1755605390623,7.11423184,182.13,182.03,3.15]
[1755605390819,4.50268014,182.12,182.03,3.15]
[1755605391122,4.50268014,182.11,182.03,3.15]
[1755605391323,4.50268014,182.1,182.03,3.15]
[1755605391528,4.50268014,182.09,182.03,3.15]
[1755605391819,3.62154669,182.14,182.03,3.15]
[1755605392013,4.50243593,182.13,182.03,3.15]
[1755605392215,4.50243593,182.12,182.03,3.15]
[1755605392411,4.50243593,182.11,182.04,2.88]
[1755605392615,3.62154669,182.14,182.04,2.88]
[1755605392921,4.50191661,182.13,182.04,2.88]
[1755605393120,4.50191661,182.12,182.04,2.88]
[1755605393318,4.50191661,182.11,182.04,2.88]
[1755605393517,3.62154669,182.14,182.04,2.88]
[1755605393823,4.50207181,182.13,182.04,2.88]
[1755605394032,4.50207181,182.12,182.04,2.88]
[1755605394323,4.50207181,182.11,182.04,2.88]
[1755605394523,3.62154669,182.14,182.04,2.88]
[1755605394723,4.50224097,182.13,182.04,2.88]
[1755605394925,4.50224097,182.12,182.04,2.88]
[1755605395122,4.50224097,182.11,182.04,2.88]
[1755605395326,4.50224097,182.1,182.04,2.88]
[1755605395522,3.62154669,182.14,182.04,2.88]
[1755605395822,4.50246608,182.13,182.04,2.88]
[1755605396122,3.62154669,182.11,182.04,2.88]
[1755605396320,4.50288902,182.1,182.01,4.62629295]
[1755605396523,4.50288902,182.09,182.0,2.88]
[1755605396721,8.12443571,182.08,182.0,2.88]
[1755605396914,4.50248995,182.07,182.0,2.88]
[1755605397114,3.62154669,182.08,182.0,2.88]
[1755605397319,4.50203643,182.07,182.0,2.88]
[1755605397523,3.62154669,182.08,182.0,2.88]
[1755605397723,4.50200245,182.07,182.0,2.88]
[1755605397924,3.62154669,182.08,182.0,2.88]
[1755605398131,4.50200393,182.07,182.0,2.88]
[1755605398325,3.62154669,182.08,182.0,2.88]
[1755605398624,4.5021696,182.07,182.0,2.88]
[1755605398827,3.62154669,182.08,182.0,2.88]
[1755605399125,4.5021696,182.07,182.0,2.88]
[1755605399325,3.62154669,182.08,182.0,2.88]
[1755605399525,4.50234401,182.07,182.0,2.88]
[1755605399726,3.62154669,182.08,182.0,2.88]
[1755605399925,4.50234401,182.07,182.0,2.88]
[1755605400125,3.62154669,182.08,182.0,2.88]
[1755605400322,4.50238196,182.07,182.0,2.88]
[1755605400525,4.50292067,182.06,181.97,4.62629295]
[1755605400732,3.62154669,182.08,181.98,2.88]
[1755605401029,3.62154669,182.05,181.98,2.88]
[1755605408136,3.62154669,182.08,181.98,2.88]
[1755605408336,4.50586785,182.07,181.98,2.88]
[1755605408536,4.50586785,182.06,181.98,2.88]
[1755605408732,4.50586785,182.05,181.98,2.88]
[1755605408934,3.62154669,182.08,181.98,2.88]
[1755605409134,4.50590417,182.07,181.98,2.88]
[1755605409334,4.50590417,182.06,181.98,2.88]
[1755605409538,4.50590417,182.05,181.98,2.88]
[1755605409732,3.62154669,182.08,181.98,2.88]
[1755605410035,4.50596897,182.07,181.98,2.88]
[1755605410233,4.50596897,182.06,181.98,2.88]
[1755605410431,4.50596897,182.05,181.98,2.88]
[1755605410632,3.62154669,182.08,181.98,2.88]
[1755605410834,4.50613548,182.07,181.98,2.88]
[1755605411034,4.50613548,182.06,181.98,2.88]
[1755605411338,4.50613548,182.05,181.98,2.88]
[1755605411532,4.50613548,182.04,181.98,2.88]
[1755605411737,3.62154669,182.08,181.98,2.88]
[1755605411940,4.50636119,182.07,181.98,2.88]
[1755605412137,4.50636119,182.06,181.98,2.88]
[1755605412339,4.50636119,182.05,181.98,2.88]
[1755605412538,4.50636119,182.04,181.98,2.88]
[1755605412736,3.62154669,182.08,181.98,2.88]
[1755605412936,4.50468878,182.07,181.98,2.88]
[1755605413137,4.50468878,182.06,181.98,2.88]
[1755605413338,3.62154669,182.08,181.98,2.88]
[1755605413832,4.50547027,182.07,181.98,2.88]
[1755605414037,4.50547027,182.06,181.98,2.88]
[1755605414229,4.50571034,182.05,181.98,2.88]
[1755605414435,3.62154669,182.08,181.98,2.88]
[1755605414638,4.50605611,182.07,181.98,2.88]
[1755605414936,4.50605611,182.06,181.98,2.88]
[1755605415136,4.50605611,182.05,181.98,2.88]
[1755605415336,3.62154669,182.08,181.98,2.88]
[1755605415536,4.50649239,182.07,181.98,2.88]
[1755605415742,4.50649239,182.06,181.98,2.88]
[1755605416041,4.50649239,182.05,181.98,2.88]
[1755605416238,3.62154669,182.08,181.98,2.88]
[1755605416434,4.50744455,182.07,181.98,2.88]
[1755605416734,4.50744455,182.06,181.98,2.88]
[1755605416935,4.50744455,182.05,181.98,2.88]
[1755605417135,3.62154669,182.08,181.98,2.88]
[1755605417328,4.50828774,182.07,181.98,2.88]
[1755605417530,4.50828774,182.06,181.98,2.88]
[1755605417740,4.50828774,182.05,181.98,2.88]
[1755605417936,3.62154669,182.08,181.98,2.88]
[1755605418136,4.5085192,182.07,181.98,2.88]
[1755605418337,2.31798868,182.04,181.98,2.88]
[1755605425838,2.31798868,182.06,181.99,2.31798868]
[1755605426042,2.31798868,182.06,182.0,2.92]
[1755605428141,2.31798868,182.08,182.02,2.92]
[1755605428350,4.49195946,182.07,182.02,2.92]
[1755605428547,2.31798868,182.1,182.02,2.92]
[1755605428757,4.49236709,182.09,182.03,2.31798868]
[1755605429056,2.31798868,182.1,182.06,2.92]
[1755605429255,4.49239414,182.09,182.06,2.92]
[1755605429456,2.31798868,182.1,182.06,2.92]
[1755605429753,4.49241904,182.09,182.06,2.92]
[1755605429954,2.31798868,182.1,182.06,2.92]
[1755605430152,4.49241903,182.09,182.06,2.92]
[1755605430355,134.6,182.11,182.06,2.92]
[1755605430551,4.49244438,182.1,182.06,2.92]
[1755605430852,4.49244438,182.09,182.06,2.92]
[1755605431051,134.6,182.11,182.06,2.92]
[1755605431252,4.49244585,182.1,182.06,2.92]
[1755605431452,4.49244585,182.09,182.06,2.92]
[1755605431653,134.6,182.11,182.06,2.92]
[1755605431853,4.49247565,182.1,182.06,2.92]
[1755605432253,4.49247734,182.09,182.06,2.92]
[1755605432453,134.6,182.11,182.06,2.92]
[1755605432657,4.49125514,182.1,182.06,2.92]
[1755605432857,4.49125514,182.09,182.06,2.92]
[1755605433061,138.19961542,182.13,182.06,2.92]
[1755605433360,4.4912375,182.12,182.06,2.92]
[1755605433555,4.4912375,182.11,182.06,2.92]
[1755605434262,4.4912375,182.1,182.06,2.92]
[1755605434462,4.4912375,182.09,182.06,2.92]
[1755605434656,138.19961542,182.13,182.06,2.92]
[1755605434965,3.61961542,182.07,182.0,2.92]
[1755605435365,4.49036828,182.06,182.0,2.92]
[1755605435560,3.61961542,182.07,182.0,2.92]
[1755605435561,4.49036828,182.05,182.0,2.92]
[1755605435762,3.61961542,182.07,182.0,2.92]
[1755605435964,4.49033927,182.06,182.0,2.92]
[1755605436158,4.49033927,182.05,182.0,2.92]
[1755605436354,3.61961542,182.07,182.0,2.92]
[1755605436565,4.49066388,182.06,182.0,2.92]
[1755605436765,4.49066388,182.05,182.0,2.92]
[1755605436964,3.61961542,182.07,182.0,2.92]
[1755605437164,4.49066388,182.06,182.0,2.92]
[1755605437368,4.49066388,182.05,182.0,2.92]
[1755605437564,4.49066388,182.04,182.0,2.92]
[1755605437873,3.61961542,182.07,182.0,2.92]
[1755605438070,4.49141914,182.06,181.97,2.92]
[1755605438260,4.49141914,182.05,181.97,2.92]
[1755605438464,4.49141914,182.04,181.97,2.92]
[1755605438664,134.54,182.06,181.97,2.92]
[1755605438872,4.49243762,182.05,181.97,2.92]
[1755605439071,4.49243762,182.04,181.97,2.92]
[1755605439365,134.54,182.06,181.97,2.92]
[1755605439564,4.49353418,182.05,181.97,2.92]
[1755605439770,4.49353418,182.04,181.97,2.92]
[1755605439970,4.49353418,182.03,181.97,2.92]
[1755605440176,134.54,182.06,181.97,2.92]
[1755605440381,4.49408644,182.05,181.97,2.92]
[1755605440671,4.49408644,182.04,181.97,2.92]
[1755605440871,4.49408644,182.03,181.97,2.92]
[1755605441072,134.54,182.06,181.97,2.92]
[1755605441274,4.49408615,182.05,181.97,2.92]
[1755605441571,4.49408615,182.04,181.97,2.92]
[1755605441772,4.49408615,182.03,181.97,2.92]
[1755605442072,134.54,182.06,181.97,2.92]
[1755605442273,4.49399306,182.05,181.97,2.92]
[1755605442472,4.49399306,182.04,181.97,2.92]
[1755605442672,4.49399306,182.03,181.97,2.92]
[1755605442873,134.54,182.06,181.97,2.92]
[1755605443076,4.49118555,182.05,181.97,2.92]
[1755605443271,4.49118555,182.04,181.97,2.92]
[1755605443471,4.49118555,182.03,181.97,2.92]
[1755605443674,134.54,182.06,181.97,2.92]
[1755605443874,4.49090195,182.05,181.97,2.92]
[1755605444074,4.49090195,182.04,181.97,2.92]
[1755605444274,4.49090195,182.03,181.97,2.92]
[1755605444575,134.54,182.06,181.97,2.92]
[1755605444776,4.49082931,182.05,181.97,2.92]
[1755605445075,4.49082931,182.04,181.97,2.92]
[1755605445266,4.49082931,182.03,181.97,2.92]
[1755605445469,134.54,182.06,181.97,2.92]
[1755605445669,4.4908685,182.05,181.97,2.92]
[1755605445870,4.4908685,182.04,181.97,2.92]
[1755605446073,4.4908685,182.03,181.97,2.92]
[1755605446271,3.61961542,182.05,181.97,2.92]
[1755605446469,4.49090817,182.04,181.97,2.92]
[1755605446676,4.49090817,182.03,181.97,2.92]
[1755605446877,3.61961542,182.05,181.97,2.92]
[1755605447174,4.49078167,182.04,181.97,2.92]
[1755605447373,4.49078167,182.03,181.97,2.92]
[1755605447574,3.61961542,182.05,181.97,2.92]
[1755605447877,4.49069926,182.04,181.97,2.92]
[1755605448076,4.49069926,182.03,181.97,2.92]
[1755605448278,3.61961542,182.05,181.97,2.92]
[1755605448480,4.49061886,182.04,181.97,2.92]
[1755605448779,4.49061886,182.03,181.97,2.92]
[1755605448979,3.61961542,182.05,181.97,2.92]
[1755605449172,4.4930187,182.04,181.97,2.92]
[1755605449373,134.54,182.06,181.97,2.92]
[1755605449676,4.49293738,182.05,181.97,2.92]
[1755605449873,4.49293738,182.04,181.97,2.92]
[1755605450078,134.54,182.06,181.97,2.92]
[1755605450478,4.49604021,182.05,181.97,2.92]
[1755605450672,4.49604021,182.04,181.97,2.92]
[1755605450874,134.54,182.06,181.97,2.92]
[1755605451175,4.49517729,182.05,181.97,2.92]
[1755605451375,4.49517729,182.04,181.97,2.92]
[1755605451575,134.54,182.06,181.97,2.92]
[1755605451776,4.49550332,182.05,181.97,2.92]
[1755605451973,4.49550332,182.04,181.97,2.92]
[1755605452174,134.54,182.06,181.97,2.92]
[1755605452374,4.49644712,182.05,181.97,2.92]
[1755605452577,4.49644712,182.04,181.97,2.92]
[1755605452875,134.54,182.06,181.97,2.92]
[1755605453076,4.49644712,182.05,181.97,2.92]
[1755605453276,4.49644712,182.04,181.97,2.92]
[1755605453477,134.54,182.06,181.97,2.92]
[1755605453678,4.49648511,182.05,181.97,2.92]
[1755605453877,4.49648511,182.04,181.97,2.92]
[1755605454180,134.54,182.06,181.97,2.92]
[1755605454382,4.49645544,182.05,181.97,2.92]
[1755605454571,4.49645544,182.04,181.97,2.92]
[1755605454774,134.54,182.06,181.97,2.92]
[1755605454970,4.49645839,182.05,181.97,2.92]
[1755605455179,4.49645839,182.04,181.97,2.92]
[1755605455378,134.54,182.06,181.97,2.92]
[1755605455574,4.49647297,182.05,181.97,2.92]
[1755605455775,4.49647297,182.04,181.97,2.92]
[1755605455976,134.54,182.06,181.97,2.92]
[1755605456281,2.31801392,182.04,181.97,5.23801392]
[1755605456882,4.49628413,182.03,181.98,3.01]
[1755605457076,2.31801392,182.05,181.98,3.01]
[1755605457277,4.49654771,182.04,181.98,3.01]
[1755605457587,2.31801392,182.05,181.98,3.01]
[1755605457784,4.49656582,182.04,181.98,3.01]
[1755605457986,2.31801392,182.05,181.98,3.01]
[1755605458182,4.49657025,182.04,181.98,3.01]
[1755605458381,2.31801392,182.05,181.98,3.01]
[1755605458583,4.49658306,182.04,181.98,3.01]
[1755605458782,2.31801392,182.05,181.98,3.01]
[1755605458984,4.49656305,182.04,181.98,3.01]
[1755605459183,2.31801392,182.05,181.98,3.01]
[1755605459483,4.49656066,182.04,181.98,3.01]
[1755605459686,2.31801392,182.05,181.98,3.01]
[1755605459986,4.49656066,182.04,181.98,3.01]
[1755605460185,2.31801392,182.05,181.98,3.01]
[1755605460388,4.49641942,182.04,181.98,3.01]
[1755605460582,2.31801392,182.05,181.99,2.31801392]
[1755605460882,2.31801392,182.1,182.02,3.01]
[1755605461083,31.86567226,182.25,182.05,3.01]
[1755605461084,4.49676923,182.09,182.05,3.01]
[1755605461282,136.79801392,182.13,182.06,3.01]
[1755605461496,4.49747955,182.12,182.06,3.01]
[1755605461683,136.79801392,182.13,182.06,3.01]
[1755605461883,4.14813085,182.12,182.06,3.01]
[1755605462188,136.79801392,182.13,182.06,3.01]
[1755605462391,134.48,182.13,182.06,3.01]
[1755605462586,4.24160754,182.12,182.06,3.01]
[1755605462782,134.48,182.13,182.06,3.01]
[1755605462989,4.24124356,182.12,182.06,3.01]
[1755605463290,134.48,182.13,182.06,3.01]
[1755605466294,134.48,182.13,182.03,3.01]
[1755605466495,4.23539184,182.12,182.03,3.01]
[1755605466798,4.23539184,182.11,182.03,3.01]
[1755605466989,134.48,182.13,182.03,3.01]
[1755605467295,8.01772346,182.12,182.03,3.01]
[1755605467494,4.39849519,182.11,182.03,3.01]
[1755605467694,4.39849519,182.1,182.03,3.01]
[1755605467895,3.61864335,182.12,182.03,3.01]
[1755605468095,4.39859001,182.11,182.03,3.01]
[1755605468292,4.39859001,182.1,182.03,3.01]
[1755605468497,3.61864335,182.12,182.03,3.01]
[1755605468698,4.39836651,182.11,182.03,3.01]
[1755605468898,4.39836651,182.1,182.03,3.01]